Cogmind - Beta 16.1 @@@ ROGUE MODE // 2026.02.26 @ 16:06:04 Player: GodofBeaverz Result: Destroyed by as-28627 with Assembled Maul Performance ------------- Evolutions (0) 0 Regions Visited (2) 400 Robots Destroyed (7) 35 Value Destroyed (116) 116 Prototype IDs (0) 0 Alien Tech Used (0) 0 Bonus (0) 0 TOTAL SCORE: 551 Bonus ------- None Cogmind --------- Core Integrity 0/250 Matter 300/300 Energy 100/100 System Corruption 2% Temperature Cool (0) Movement Core (50) Location -10/Mines Parts ------- > --- POWER (1) -------- (None) > --- PROPULSION (2) --- (None) > --- UTILITY (2) ------ (None) > --- WEAPON (2) ------- (None) > --- INVENTORY (5) ---- Light Ion Engine Medium Storage Unit Peak State ------------ > --- POWER ------------ Light Ion Engine > --- PROPULSION ------- Aluminum Leg Aluminum Leg > --- UTILITY ---------- Small Storage Unit Small Storage Unit > --- WEAPON ----------- Medium Laser > --- INVENTORY -------- Ion Engine Light Ion Engine Grenade Launcher [Rating: 6] Favorites ----------- Power Ion Engine Engine Ion Engine Propulsion Aluminum Leg Leg Aluminum Leg Utility Small Storage Unit Storage Small Storage Unit Processor Targeting Computer Weapon Medium Laser Energy Gun Medium Laser Launcher Grenade Launcher Build | -11 -10 -10 ------- Run | Yrd Mat Min Slots Evolved . | . . . Power . | . . . Propulsion . | . . . Utility . | . . . Weapon . | . . . Parts Attached 10 | 2 7 1 Power 2 | . 1 1 Engine 2 | . 1 1 Core . | . . . Reactor . | . . . Propulsion 2 | . 2 . Treads . | . . . Leg 2 | . 2 . Wheel . | . . . Hover . | . . . Flight . | . . . Utility 3 | . 3 . Device . | . . . Storage 2 | . 2 . Processor 1 | . 1 . Hackware . | . . . Protection . | . . . Artifact . | . . . Weapon 3 | 2 1 . Energy Gun 2 | 2 . . Energy Cannon . | . . . Ballistic Gun . | . . . Ballistic Cannon . | . . . Launcher 1 | . 1 . Special Weapon . | . . . Impact Weapon . | . . . Slashing Weapon . | . . . Piercing Weapon . | . . . Special Melee Weapon . | . . . Unidentified Prototypes . | . . . Parts Lost 10 | . 5 5 Power 2 | . 1 1 Propulsion 2 | . 2 . Utility 3 | . 1 2 Weapon 3 | . 1 2 Highest Loss Streak 5 | . 4 5 To Critical Strikes . | . . . Average Backups 3 | 2 4 3 Power 1 | 1 2 1 Propulsion . | 1 . . Utility 1 | . 1 1 Weapon . | . . . Tool/Special . | . . . Unused Backups 2 | . . 2 Power 1 | . . 1 Propulsion . | . . . Utility 1 | . . 1 Weapon . | . . . Tool/Special . | . . . Average Slot Usage (%) 52 | . 57 39 Engine 2 | . 2 4 Leg 18 | . 25 . Storage 9 | . 4 22 Energy Gun 14 | . 15 9 Launcher 6 | . 7 3 Peak Build Rating 6 | 2 6 5 Average Rating 3 | . 4 2 On Entrance 1 | . 2 2 Avg Prop Armor Cover (%) . | . . . Naked Turns 1 | . . 1 Heaviest Build 20 | 4 15 20 Greatest Support 20 | 3 20 3 Greatest Overweight (x) 6 | 1 2 6 Average Overweight (x) . | . . 3 Largest Inventory Capacity 8 | 5 8 8 Average Capacity 6 | 5 5 7 Most Carried 5 | 5 5 5 Average Carried 3 | 3 4 3 Final Capacity 8 | 5 8 5 Final Carried 5 | 5 5 2 Class Distribution -------------------- 100% | Mutant Dominant Class ---------------- Mutant | -10/Materials Mutant | -10/Mines Resources | -11 -10 -10 ----------- Run | Yrd Mat Min Matter Collected 355 | 220 105 30 Remotely . | . . . Salvage Created 176 | . 176 . Parts 16 | . 16 . Haulers Intercepted . | . . . Recyclers Shooed 1 | . 1 . Parts Field Recycled . | . . . Retrieved Matter . | . . . Parts Self-Destructed . | . . . Prevented . | . . . Parts Restored . | . . . Kills | -11 -10 -10 ------- Run | Yrd Mat Min Combat Hostiles Destroyed 3 | . 3 . Guns 3 | . 3 . Classes Destroyed 5 | . 5 . Builder 2 | . 2 . Recycler 1 | . 1 . Operator 1 | . 1 . Swarmer 2 | . 2 . Grunt 1 | . 1 . Best Kill Streak 2 | . 2 . Combat Bots Only 1 | . 1 . Max Kills in Single Turn 2 | . 2 . Gunslinging . | . . . Exploded . | . . . Melee . | . . . Uniques/NPCs Destroyed . | . . . Combat | -11 -10 -10 -------- Run | Yrd Mat Min Hostile Shots Fired 92 | . 65 27 Missed 22 | . 19 3 Hits 70 | . 46 24 Melee 12 | . . 12 Projectile 58 | . 46 12 Critical Strikes 1 | . . 1 Damage Taken 1037 | . 472 565 Core 272 | . 104 168 Absorbed by Shields . | . . . Core Remaining (%) 100 | 100 . . Volleys Fired 23 | . 23 . Largest 2 | . 2 . Hottest 90 | . 90 . Shots Fired 30 | . 30 . Gun 26 | . 26 . Cannon . | . . . Launcher 4 | . 4 . Special . | . . . Kinetic . | . . . Thermal 19 | . 19 . Explosive 4 | . 4 . Electromagnetic 7 | . 7 . Robot Hit Streak 4 | . 4 . Robot Miss Streak 3 | . 3 . Penetration Max . | . . . Secondary Targets . | . . . Shots Hit Robots 15 | . 15 . Core Hits 11 | . 11 . Critical Kills . | . . . Critical Parts Destroyed . | . . . Critical Strikes . | . . . Melee Attacks . | . . . Impact . | . . . Slashing . | . . . Piercing . | . . . Sneak Attacks . | . . . Combat Hostiles . | . . . Follow-up Attacks . | . . . Damage Inflicted 340 | . 340 . Guns 188 | . 188 . Cannons . | . . . Explosions 152 | . 152 . Melee . | . . . Ramming . | . . . Kinetic . | . . . Thermal 148 | . 148 . Explosive 152 | . 152 . Electromagnetic 40 | . 40 . Impact . | . . . Slashing . | . . . Piercing . | . . . Highest Corruption 2 | . . 2 Average Corruption 2 | . . 2 Corruption Purged . | . . . Corruption Blocked . | . . . Overload Shots . | . . . Overflow Damage . | . . . Projectiles . | . . . Explosions . | . . . Melee . | . . . Knockbacks . | . . . Impact . | . . . Kinetic . | . . . Secondary . | . . . Self-Inflicted Damage . | . . . Shots . | . . . Rammed . | . . . Targets Rammed . | . . . Kicked . | . . . Crushed . | . . . Highest Temperature 35 | . 35 . Average Temperature 16 | . 16 . Received Heat Transfer 129 | . 129 . Siege Activations . | . . . Martial Activations . | . . . Shielding Activations . | . . . Robots Disrupted . | . . . Combat Hostiles . | . . . Robots Corrupted . | . . . Combat Hostiles . | . . . Parts Fried . | . . . Impact Corruptions . | . . . Robots Melted . | . . . Combat Hostiles . | . . . Parts Melted 1 | . 1 . Heat Transferred 444 | . 444 . Parts Sabotaged . | . . . Parts Stolen . | . . . Parts Stripped . | . . . Power Chain Reactions . | . . . Alert | -11 -10 -10 ------- Run | Yrd Mat Min Maximum Alert Level . | . . . Low Security (%) 100 | 100 100 100 Level 1 . | . . . Level 2 . | . . . Level 3 . | . . . Level 4 . | . . . Level 5 . | . . . High Security . | . . . Max Security . | . . . Peak Influence 72 | . 72 19 Initial 19 | . . 19 Average 15 | . 21 5 Influence Increases 178 | . 178 . Destroy 0b10 Robot/C 60 | . 60 . Destroy 0b10 Robot/NC 20 | . 20 . Destroy Leader 20 | . 20 . Disable Machine 45 | . 45 . Destroy Structure 18 | . 18 . Lose Combat Pursuer 15 | . 15 . Influence Decreases 178 | . 126 52 Entered New Map 33 | . . 33 Time Decay 95 | . 76 19 Lost Part 50 | . 50 . Squads Dispatched 1 | . 1 . Investigation . | . . . Extermination . | . . . Reinforcement 1 | . 1 . Assault . | . . . Garrison . | . . . Intercept . | . . . Searches Triggered . | . . . Construction Impeded . | . . . Haulers Reinforced . | . . . Active Scanning Responses . | . . . Cargo Convoy Interrupts . | . . . Stealth | -11 -10 -10 --------- Run | Yrd Mat Min Distress Signals . | . . . Communications Jammed . | . . . Distress Signals . | . . . Times Spotted 17 | . 10 7 Peak Tracking Total 6 | . 6 4 Tactical Retreats 2 | . 1 1 Traps | -11 -10 -10 ------- Run | Yrd Mat Min Traps Triggered . | . . . Indirectly . | . . . Trap Hack Attempts . | . . . Triggered . | . . . Disarmed . | . . . Reprogrammed . | . . . Reused . | . . . Traps Extracted . | . . . Installed . | . . . Triggered . | . . . Machines | -11 -10 -10 ---------- Run | Yrd Mat Min Machines Disabled 3 | . 3 . Max in Single Turn 3 | . 3 . Machines Repaired . | . . . Machines Dismantled . | . . . Machines Sabotaged . | . . . Overloaded Fab Kills . | . . . Hacking | -11 -10 -10 --------- Run | Yrd Mat Min Machines Accessed . | . . . Terminals . | . . . Fabricators . | . . . Repair Stations . | . . . Recycling Units . | . . . Scanalyzers . | . . . Garrison Access . | . . . Total Hacks . | . . . Successful . | . . . Failed . | . . . Catastrophic . | . . . Database Lockouts . | . . . Manual . | . . . Terminals . | . . . Fabricators . | . . . Repair Stations . | . . . Recycling Units . | . . . Scanalyzers . | . . . Garrison Access . | . . . Terminal Hacks . | . . . Fabricator Hacks . | . . . Repair Station Hacks . | . . . Recycling Unit Hacks . | . . . Scanalyzer . | . . . Garrison Access Hacks . | . . . Unauthorized Hacks . | . . . Terminals . | . . . Fabricators . | . . . Repair Stations . | . . . Recycling Units . | . . . Scanalyzers . | . . . Garrison Access . | . . . Data Cores Recovered . | . . . Used . | . . . Hacking Detections . | . . . Full Trace Events . | . . . Feedback Events . | . . . Feedback Blocked . | . . . Robot Schematics Acquired . | . . . Robots Built . | . . . Authchips . | . . . Time . | . . . Total Robot Build Rating . | . . . Part Schematics Acquired . | . . . Parts Built . | . . . Authchips . | . . . Time . | . . . Total Part Build Rating . | . . . Part Studies Acquired . | . . . Parts Repaired . | . . . Time . | . . . Parts Recycled . | . . . Recycled Matter . | . . . Retrieved Matter . | . . . Retrieved Components . | . . . Parts Scanalyzed . | . . . Part Schematics Acquired . | . . . Parts Damaged . | . . . Bothacking | -11 -10 -10 ------------ Run | Yrd Mat Min Used RIF Installer . | . . . Robots Hacked . | . . . Non-combat . | . . . Combat . | . . . Robot Hacks Applied . | . . . Relay Couplers Released . | . . . Fabnet Peak Effective % . | . . . Robots Rewired . | . . . Allies Hacked . | . . . Hacks Repelled . | . . . Allies | -11 -10 -10 -------- Run | Yrd Mat Min Total Allies . | . . . Largest Group . | . . . Highest-Rated Group . | . . . Highest-Rated Ally . | . . . Total Orders . | . . . Ally Attacks . | . . . Total Damage . | . . . Kills . | . . . Allies Corrupted . | . . . Allies Melted . | . . . Intel | -11 -10 -10 ------- Run | Yrd Mat Min Active Infowar (turns) . | . . . Robot Analysis Total . | . . . Derelict Logs Recovered 1 | . . 1 Drone Launches . | . . . Drone Recoveries . | . . . Exploration | -11 -10 -10 ------------- Run | Yrd Mat Min Turns Passed 452 | 46 298 108 Spaces Moved 278 | 51 179 48 Core 110 | 51 11 48 Treads . | . . . Legs 168 | . 168 . Wheels . | . . . Hover . | . . . Flight . | . . . Fastest Speed 50 | 50 100 150 Average Speed 125 | 69 119 206 Slowest Speed 350 | 100 150 350 Overloaded Moves . | . . . Propulsion Burnouts . | . . . Robots Hopped . | . . . Potential Cave-ins . | . . . Cave-ins Triggered . | . . . Exploration Rate (%) 14 | 3 27 12 Regions Visited 2 Branch Regions 1 Pre-discovered Areas . | . . . Known Exits Taken . | . . . Unknown Exits Taken 2 | 1 1 . Scrap Searched . | . . . Spaces Dug 5 | . 5 . Terrain Destroyed 18 | . 18 . Melee . | . . . Projectile . | . . . AOE 18 | . 18 . Terrain Rammed . | . . . Walls Destroyed . | . . . Machines Disabled . | . . . Actions | -11 -10 -10 --------- Run | Yrd Mat Min Total 349 | 60 232 57 Wait 27 | 3 18 6 Move 276 | 50 178 48 Hop . | . . . Pick Up 10 | 5 5 . Fast Attach 2 | 2 . . Attach 8 | . 5 3 Detach . | . . . Swap 3 | . 3 . Drop . | . . . Fire 23 | . 23 . Melee . | . . . Ram . | . . . Kick . | . . . Crush . | . . . Escape Stasis . | . . . Rewire . | . . . Trap . | . . . Miscellaneous . | . . . Route ------- -11/Scrapyard -10/Materials -10/Mines History --------- Turn | Location | Event 16 | -11/Scrapyard | Discovered new exit (range 16) 47 | -11/Scrapyard | Entered Materials 312 | -10/Materials | Build established: Mutant 325 | -10/Materials | Discovered new exit (range 9) 345 | -10/Materials | Entered Mines 346 | -10/Mines | Assembled infested the area 373 | -10/Mines | Lost 4 parts (1p2n1u) 379 | -10/Mines | Learned Materials interactive machine intel 410 | -10/Mines | Core integrity fell below 50% 440 | -10/Mines | Core integrity fell below 20% 453 | -10/Mines | Destroyed by as-28627 with Assembled Maul Last Messages --------------- 00336_ S-10 Pest destroyed. 00336_ S-10 Pest overheating. 00340_ S-10 Pest heat short circuits Flight Unit. 00340_ R-06 Scavenger collects Flight Unit. 00342_ Aluminum Leg destroyed. LOCATION=UNKNOWN GOAL=ESCAPE 00346_ ALERT: Infestation in the mines, dispatching Demolisher response squad. 00379_ Acquired derelict log, extracted data. Data stored: Materials interactive machine intel. 00392_ Extracted 30 matter. 00412_ Grenade Launcher destroyed. 00412_ Med. Laser destroyed. 00425_ Ion Engine destroyed. 00450_ Sml. Storage Unit destroyed. 00450_ System corrupted by crushing effect (+2). 00452_ Sml. Storage Unit destroyed. Map ----- +----------------------------------------------------+ | | | | | | | ?????????????????????????????????????????????????? | | ?????????????????????????????????????????????????? | | ?????????????????????????????????????????????????? | | ?????????????????????????????????????????????????? | | ?????????????????????????????????????????????????? | | ?????????????????????????????????????????????????? | | ?????????????????????????????????????????????????? | | ?????????????????????????????????????????????????? | | ?????????????????????????????????????????????????? | | ????????????????????????????##???????????????????? | | ???????????????????????????? ?? ????????????????? | | ???????????????####????????? ? ???????????????? | | ??????????????## ##???????? ??????????????? | | ????????????### ###?????? ??????????????? | | ???????????## ###???# ??????????????? | | ???????????# ##?? #????????????????? | | ??????????# ## #?????????????????? | | ??????????# ### #??????????????????? | | ??????????## #??## ##??????????????????? | | ???????????###????## ##### #???????????????????? | | ???????????????????## ##???# #???????????????????? | | ???????????????????## ######a#???????????????????? | | ???????????????????# a @aa #???????????????????? | | ???????????????????#a#########???????????????????? | | ???????????????????# #???????????????????????????? | | ???????????????????# #???????????????????????????? | | ????????????######## #???????????????????????????? | | ????????????# #???????????????????????????? | | ???????# ###### ###?????????????????????????? | | ????????????????# #?????????????????????????? | | ????????????????# !!! #?????????????????????????? | | ????????????????# ! !! #?????????????????????????? | | ????????????????# ! !! #?????????????????????????? | | ????????????????# !!! #?????????????????????????? | | ????????????????# #?????????????????????????? | | ????????????????## #?????????????????????????? | | ?????????????????# #?????????????????????????? | | ?????????????????#######?????????????????????????? | | ?????????????????????????????????????????????????? | | ?????????????????????????????????????????????????? | | ?????????????????????????????????????????????????? | | ?????????????????????????????????????????????????? | | ?????????????????????????????????????????????????? | | ?????????????????????????????????????????????????? | | ?????????????????????????????????????????????????? | | ?????????????????????????????????????????????????? | | ?????????????????????????????????????????????????? | +----------------------------------------------------+ Best States ------------- Heat Dissipation 25 Energy Generation 10 Energy Capacity 250 Matter Stores 300 Matter Capacity 300 Sight Range 16 Terrain Scan Density 10 Evasion (%) 55 Targeting Accuracy 5 Item Schematics ----------------- None Robot Schematics ------------------ None Fabricated ------------ Nothing Repaired ---------- Nothing Studied --------- None Alien Tech Used ----------------- None Achievements -------------- DATA ERROR: Steam Global Achievement% Ghost 'Em Organ Harvest Challenges ------------ None Game ------ Seed BombSapperCarapace Manual? 0 Play Time 00:26:09 Cumulative 9.4 hours Start 2026.02.26 @ 14:42:22 End 2026.02.26 @ 16:06:04 Sessions 2 Manual Loads 0 Difficulty Rogue Special Mode None Game No. 9 Rogue 9 Adventurer 0 Explorer 0 Win Type - Total 0 Types 0/0/0/0/0/0/0/0/0/0 Lore% 9 Gallery% 9 Achievement% 6 Wizard Run 0 Options --------- Layout 1 ASCII 0 Keyboard 0 Movement Mouse Keybinds 0 Fullscreen 2 Font 32/Smallcaps Map View 50x35 Zoom Use 3% Tactical HUD 1 Map Filters NONE Filters NONE Steam 1 RUN: a8da0fd4-a831-417c-9e8e-69e5334e76ef